[Event "Titled Tuesday Blitz May 30 Early 2023"]
[White "koncheto"]
[Black "Sai Han Thiha"]
[BlackFideId "13012290"]
[WhiteElo "2583"]
[BlackElo "1954"]
[Result "1-0"]
[Round "08"]
[TimeControl "180+2"]
[Date "2023.05.30"]
[WhiteClock "0:00:02"]
[BlackClock "0:00:00"]

1. d4 {[%clk 0:03:00]}  Nf6 {[%clk 0:03:00]} 2. Bg5 {[%clk 0:03:00]}  e6 {[%clk 0:03:00]} 3. e4 {[%clk 0:03:00]}  h6 {[%clk 0:03:00]} 4. Bxf6 {[%clk 0:03:00]}  Qxf6 {[%clk 0:03:01]} 5. Nf3 {[%clk 0:02:59]}  d6 {[%clk 0:03:00]} 6. Bd3 {[%clk 0:02:59]}  g6 {[%clk 0:03:00]} 7. Nbd2 {[%clk 0:02:58]}  Bg7 {[%clk 0:02:59]} 8. h4 {[%clk 0:02:52]}  Nc6 {[%clk 0:02:55]} 9. c3 {[%clk 0:02:50]}  e5 {[%clk 0:02:55]} 10. dxe5 {[%clk 0:02:37]}  dxe5 {[%clk 0:02:43]} 11. h5 {[%clk 0:02:27]}  g5 {[%clk 0:02:27]} 12. Nh2 {[%clk 0:02:25]}  O-O {[%clk 0:02:19]} 13. Ng4 {[%clk 0:02:24]}  Qd6 {[%clk 0:02:20]} 14. Bc2 {[%clk 0:02:17]}  Be6 {[%clk 0:01:50]} 15. Ne3 {[%clk 0:02:10]}  Rad8 {[%clk 0:01:45]} 16. Qe2 {[%clk 0:02:09]}  Ne7 {[%clk 0:01:39]} 17. b3 {[%clk 0:01:36]}  Qc5 {[%clk 0:01:34]} 18. Nd1 {[%clk 0:01:12]}  Rd6 {[%clk 0:01:16]} 19. Qe3 {[%clk 0:01:12]}  Qc6 {[%clk 0:01:05]} 20. Nb2 {[%clk 0:01:08]}  b5 {[%clk 0:00:58]} 21. a4 {[%clk 0:01:06]}  a6 {[%clk 0:00:57]} 22. axb5 {[%clk 0:01:04]}  axb5 {[%clk 0:00:58]} 23. O-O {[%clk 0:01:02]}  Rfd8 {[%clk 0:00:58]} 24. Nf3 {[%clk 0:00:53]}  Bg4 {[%clk 0:00:58]} 25. c4 {[%clk 0:00:45]}  Bxh5 {[%clk 0:00:52]} 26. cxb5 {[%clk 0:00:43]}  Qxb5 {[%clk 0:00:52]} 27. Nc4 {[%clk 0:00:39]}  R6d7 {[%clk 0:00:37]} 28. Ra5 {[%clk 0:00:39]}  Qb4 {[%clk 0:00:36]} 29. Nfxe5 {[%clk 0:00:36]}  Rd4 {[%clk 0:00:30]} 30. Ra7 {[%clk 0:00:23]}  Qb6 {[%clk 0:00:28]} 31. Nxb6 {[%clk 0:00:21]}  Bxe5 {[%clk 0:00:23]} 32. Nd5 {[%clk 0:00:20]}  Ng6 {[%clk 0:00:20]} 33. Rxc7 {[%clk 0:00:15]}  Nf4 {[%clk 0:00:15]} 34. Rc6 {[%clk 0:00:09]}  Ne2+ {[%clk 0:00:13]} 35. Kh1 {[%clk 0:00:10]}  Bf4 {[%clk 0:00:07]} 36. Nxf4 {[%clk 0:00:09]}  gxf4 {[%clk 0:00:08]} 37. Qh3 {[%clk 0:00:09]}  Bg6 {[%clk 0:00:03]} 38. Qxh6 {[%clk 0:00:09]}  R4d6 {[%clk 0:00:03]} 39. Rxd6 {[%clk 0:00:07]}  Rxd6 {[%clk 0:00:04]} 40. e5 {[%clk 0:00:08]}  Re6 {[%clk 0:00:05]} 41. Bxg6 {[%clk 0:00:08]}  Rxg6 {[%clk 0:00:05]} 42. Qxg6+ {[%clk 0:00:05]}  fxg6 {[%clk 0:00:06]} 43. b4 {[%clk 0:00:06]}  Nd4 {[%clk 0:00:06]} 44. Rc1 {[%clk 0:00:03]}  Kf7 {[%clk 0:00:05]} 45. Rc5 {[%clk 0:00:02]}  Ke6 {[%clk 0:00:04]} 46. Ra5 {[%clk 0:00:02]}  Nb3 {[%clk 0:00:04]} 47. Ra6+ {[%clk 0:00:02]}  Kf5 {[%clk 0:00:03]} 48. Rf6+ {[%clk 0:00:02]}  Kxe5 {[%clk 0:00:03]} 49. Rxg6 {[%clk 0:00:03]}  Nd4 {[%clk 0:00:00]} 50. b5 {[%clk 0:00:02]} 1-0


[Site "https://www.chess.com"]

[Event "Titled Tuesday Blitz May 30 Early 2023"]
[White "Dinu, Dumitru-Daniel"]
[Black "Mamedov, Edgar"]
[WhiteFideId "1208403"]
[BlackFideId "13739980"]
[WhiteElo "2240"]
[BlackElo "2317"]
[Result "1-0"]
[Round "08"]
[TimeControl "180+2"]
[Date "2023.05.30"]
[WhiteClock "0:01:25"]
[BlackClock "0:01:19"]

1. e4 {[%clk 0:03:00]}  c5 {[%clk 0:02:59]} 2. b3 {[%clk 0:03:00]}  g6 {[%clk 0:02:54]} 3. Bb2 {[%clk 0:02:59]}  Nf6 {[%clk 0:02:54]} 4. Nc3 {[%clk 0:03:00]}  d6 {[%clk 0:02:45]} 5. Bb5+ {[%clk 0:02:58]}  Bd7 {[%clk 0:02:43]} 6. Bxd7+ {[%clk 0:02:58]}  Nbxd7 {[%clk 0:02:42]} 7. f4 {[%clk 0:02:58]}  Bg7 {[%clk 0:02:42]} 8. d3 {[%clk 0:02:55]}  O-O {[%clk 0:02:42]} 9. Nf3 {[%clk 0:02:55]}  b5 {[%clk 0:02:30]} 10. O-O {[%clk 0:02:53]}  b4 {[%clk 0:02:29]} 11. Ne2 {[%clk 0:02:52]}  a5 {[%clk 0:02:24]} 12. a4 {[%clk 0:02:49]}  e5 {[%clk 0:02:19]} 13. fxe5 {[%clk 0:02:44]}  Ng4 {[%clk 0:02:18]} 14. Qd2 {[%clk 0:02:39]}  Ngxe5 {[%clk 0:02:14]} 15. Nxe5 {[%clk 0:02:37]}  Nxe5 {[%clk 0:02:15]} 16. Rab1 {[%clk 0:02:34]}  Qd7 {[%clk 0:02:12]} 17. Nf4 {[%clk 0:02:28]}  f5 {[%clk 0:02:04]} 18. Nd5 {[%clk 0:02:21]}  fxe4 {[%clk 0:02:03]} 19. dxe4 {[%clk 0:02:22]}  Rab8 {[%clk 0:01:46]} 20. Qe2 {[%clk 0:02:07]}  h6 {[%clk 0:01:38]} 21. Rxf8+ {[%clk 0:02:04]}  Rxf8 {[%clk 0:01:37]} 22. Rf1 {[%clk 0:02:01]}  Rxf1+ {[%clk 0:01:36]} 23. Qxf1 {[%clk 0:02:00]}  Qg4 {[%clk 0:01:29]} 24. Ne7+ {[%clk 0:01:26]}  Kh7 {[%clk 0:01:27]} 25. Bxe5 {[%clk 0:01:25]}  Bxe5 {[%clk 0:01:21]} 26. Qf7+ {[%clk 0:01:25]}  Bg7 {[%clk 0:01:19]} 27. Qg8# {[%clk 0:01:25]} 1-0


[Site "https://www.chess.com"]

[Event "Titled Tuesday Blitz May 30 Early 2023"]
[White "Abdilkhair, Abilmansur"]
[Black "Sharapov, Evgeny"]
[WhiteFideId "13716417"]
[BlackFideId "14103133"]
[WhiteElo "2215"]
[BlackElo "2367"]
[Result "1-0"]
[Round "08"]
[TimeControl "180+2"]
[Date "2023.05.30"]
[WhiteClock "0:01:05"]
[BlackClock "0:01:13"]

1. Nf3 {[%clk 0:02:54]}  c5 {[%clk 0:02:59]} 2. g3 {[%clk 0:02:47]}  Nc6 {[%clk 0:02:59]} 3. Bg2 {[%clk 0:02:48]}  e5 {[%clk 0:02:59]} 4. O-O {[%clk 0:02:48]}  g6 {[%clk 0:02:59]} 5. d3 {[%clk 0:02:47]}  Bg7 {[%clk 0:02:59]} 6. c4 {[%clk 0:02:46]}  Nge7 {[%clk 0:02:59]} 7. Nc3 {[%clk 0:02:46]}  d6 {[%clk 0:03:00]} 8. Bg5 {[%clk 0:02:45]}  O-O {[%clk 0:02:59]} 9. Qd2 {[%clk 0:02:44]}  f6 {[%clk 0:02:59]} 10. Bh6 {[%clk 0:02:42]}  Be6 {[%clk 0:02:59]} 11. Bxg7 {[%clk 0:02:40]}  Kxg7 {[%clk 0:02:59]} 12. h4 {[%clk 0:02:41]}  h5 {[%clk 0:02:57]} 13. a3 {[%clk 0:02:41]}  a5 {[%clk 0:02:57]} 14. Rab1 {[%clk 0:02:41]}  d5 {[%clk 0:02:57]} 15. cxd5 {[%clk 0:02:38]}  Nxd5 {[%clk 0:02:56]} 16. Ne4 {[%clk 0:02:38]}  b6 {[%clk 0:02:55]} 17. Rfc1 {[%clk 0:02:33]}  Nd4 {[%clk 0:02:46]} 18. Nxd4 {[%clk 0:02:30]}  exd4 {[%clk 0:02:47]} 19. b4 {[%clk 0:02:05]}  axb4 {[%clk 0:02:46]} 20. axb4 {[%clk 0:02:06]}  Nxb4 {[%clk 0:02:41]} 21. Nxc5 {[%clk 0:01:46]}  bxc5 {[%clk 0:02:40]} 22. Bxa8 {[%clk 0:01:46]}  Qxa8 {[%clk 0:02:40]} 23. Rxc5 {[%clk 0:01:47]}  Nd5 {[%clk 0:02:36]} 24. Qa5 {[%clk 0:01:43]}  Qxa5 {[%clk 0:02:34]} 25. Rxa5 {[%clk 0:01:44]}  Nc3 {[%clk 0:02:33]} 26. Rb7+ {[%clk 0:01:43]}  Rf7 {[%clk 0:02:33]} 27. Rxf7+ {[%clk 0:01:39]}  Kxf7 {[%clk 0:02:29]} 28. e3 {[%clk 0:01:40]}  dxe3 {[%clk 0:02:24]} 29. fxe3 {[%clk 0:01:41]}  f5 {[%clk 0:02:19]} 30. Kf2 {[%clk 0:01:38]}  Kf6 {[%clk 0:02:17]} 31. Rc5 {[%clk 0:01:34]}  Nd5 {[%clk 0:02:16]} 32. e4 {[%clk 0:01:32]}  fxe4 {[%clk 0:02:15]} 33. dxe4 {[%clk 0:01:33]}  Nb6 {[%clk 0:02:10]} 34. Kf3 {[%clk 0:01:29]}  Nd7 {[%clk 0:02:10]} 35. Ra5 {[%clk 0:01:25]}  Ne5+ {[%clk 0:02:09]} 36. Kf4 {[%clk 0:01:23]}  Nd3+ {[%clk 0:02:08]} 37. Ke3 {[%clk 0:01:24]}  Ne5 {[%clk 0:02:07]} 38. Kf4 {[%clk 0:01:24]}  Nd3+ {[%clk 0:02:06]} 39. Ke3 {[%clk 0:01:24]}  Ne5 {[%clk 0:01:54]} 40. Ra6 {[%clk 0:01:21]}  Nc4+ {[%clk 0:01:49]} 41. Kf4 {[%clk 0:01:18]}  Ne5 {[%clk 0:01:47]} 42. Rd6 {[%clk 0:01:17]}  Nf7 {[%clk 0:01:42]} 43. Rc6 {[%clk 0:01:12]}  Ne5 {[%clk 0:01:41]} 44. Rc3 {[%clk 0:01:11]}  Bf7 {[%clk 0:01:34]} 45. Ke3 {[%clk 0:01:11]}  Be6 {[%clk 0:01:28]} 46. Kd4 {[%clk 0:01:10]}  Bf7 {[%clk 0:01:25]} 47. Kc5 {[%clk 0:01:10]}  Ke6 {[%clk 0:01:21]} 48. Ra3 {[%clk 0:01:06]}  Nf3 {[%clk 0:01:13]} 49. Rxf3 {[%clk 0:01:05]} 1-0


[Site "https://www.chess.com"]

[Event "Titled Tuesday Blitz May 30 Early 2023"]
[White "Belov, Alexei"]
[Black "Srebrnic, Marko"]
[WhiteFideId "4128206"]
[BlackFideId "14603616"]
[WhiteElo "2540"]
[BlackElo "2341"]
[Result "0-1"]
[Round "08"]
[TimeControl "180+2"]
[Date "2023.05.30"]
[WhiteClock "0:00:14"]
[BlackClock "0:00:16"]

1. e4 {[%clk 0:03:00]}  c5 {[%clk 0:02:59]} 2. Nf3 {[%clk 0:03:00]}  Nc6 {[%clk 0:02:59]} 3. d4 {[%clk 0:03:01]}  cxd4 {[%clk 0:02:59]} 4. Nxd4 {[%clk 0:03:01]}  e5 {[%clk 0:03:00]} 5. Nb5 {[%clk 0:03:01]}  d6 {[%clk 0:02:57]} 6. Bc4 {[%clk 0:03:01]}  Be6 {[%clk 0:02:54]} 7. Bd5 {[%clk 0:03:01]}  Nf6 {[%clk 0:02:51]} 8. Bg5 {[%clk 0:03:01]}  a6 {[%clk 0:02:46]} 9. Bxf6 {[%clk 0:03:00]}  gxf6 {[%clk 0:02:45]} 10. N5c3 {[%clk 0:02:59]}  Nd4 {[%clk 0:02:41]} 11. O-O {[%clk 0:02:58]}  h5 {[%clk 0:02:38]} 12. Nd2 {[%clk 0:02:53]}  h4 {[%clk 0:02:32]} 13. Nb3 {[%clk 0:02:52]}  Nxb3 {[%clk 0:02:28]} 14. axb3 {[%clk 0:02:52]}  Qc7 {[%clk 0:02:27]} 15. Qf3 {[%clk 0:02:43]}  Be7 {[%clk 0:02:25]} 16. Rfd1 {[%clk 0:02:32]}  O-O-O {[%clk 0:02:23]} 17. b4 {[%clk 0:02:30]}  h3 {[%clk 0:02:21]} 18. g3 {[%clk 0:02:29]}  Rhg8 {[%clk 0:02:20]} 19. Bxe6+ {[%clk 0:02:25]}  fxe6 {[%clk 0:02:20]} 20. b5 {[%clk 0:02:25]}  Qb6 {[%clk 0:02:01]} 21. bxa6 {[%clk 0:02:23]}  bxa6 {[%clk 0:02:02]} 22. Ra3 {[%clk 0:02:16]}  Rd7 {[%clk 0:01:31]} 23. Qd3 {[%clk 0:02:08]}  Ra7 {[%clk 0:01:26]} 24. Na4 {[%clk 0:01:55]}  Qb5 {[%clk 0:01:17]} 25. c4 {[%clk 0:01:36]}  Qc6 {[%clk 0:01:12]} 26. b4 {[%clk 0:01:21]}  f5 {[%clk 0:01:02]} 27. Nc3 {[%clk 0:01:20]}  fxe4 {[%clk 0:00:53]} 28. Nxe4 {[%clk 0:01:15]}  d5 {[%clk 0:00:47]} 29. cxd5 {[%clk 0:01:14]}  Qxd5 {[%clk 0:00:38]} 30. Qc2+ {[%clk 0:01:07]}  Rc7 {[%clk 0:00:38]} 31. Rc3 {[%clk 0:01:08]}  Qb7 {[%clk 0:00:28]} 32. Rxc7+ {[%clk 0:00:57]}  Qxc7 {[%clk 0:00:28]} 33. Qb3 {[%clk 0:00:57]}  Qc6 {[%clk 0:00:23]} 34. Qe3 {[%clk 0:00:55]}  Bg5 {[%clk 0:00:18]} 35. Qd3 {[%clk 0:00:28]}  Rd8 {[%clk 0:00:17]} 36. Nd6+ {[%clk 0:00:14]}  Rxd6 {[%clk 0:00:16]} 0-1


[Site "https://www.chess.com"]

[Event "Titled Tuesday Blitz May 30 Early 2023"]
[White "Szyszylo, Rafal"]
[Black "Do Nascimento,Christian Almeida"]
[WhiteFideId "1109626"]
[BlackFideId "2143801"]
[WhiteElo "1951"]
[BlackElo "2118"]
[Result "0-1"]
[Round "08"]
[TimeControl "180+2"]
[Date "2023.05.30"]
[WhiteClock "0:00:07"]
[BlackClock "0:00:16"]

1. e4 {[%clk 0:02:52]}  c5 {[%clk 0:02:59]} 2. Nc3 {[%clk 0:02:51]}  g6 {[%clk 0:02:59]} 3. d4 {[%clk 0:02:48]}  cxd4 {[%clk 0:02:59]} 4. Qxd4 {[%clk 0:02:48]}  Nf6 {[%clk 0:02:58]} 5. Nf3 {[%clk 0:02:47]}  Nc6 {[%clk 0:02:58]} 6. Qa4 {[%clk 0:02:48]}  d6 {[%clk 0:02:56]} 7. e5 {[%clk 0:02:48]}  dxe5 {[%clk 0:02:56]} 8. Nxe5 {[%clk 0:02:49]}  Bd7 {[%clk 0:02:56]} 9. Nxd7 {[%clk 0:02:50]}  Qxd7 {[%clk 0:02:56]} 10. Be3 {[%clk 0:02:49]}  Bg7 {[%clk 0:02:51]} 11. Rd1 {[%clk 0:02:49]}  Qc8 {[%clk 0:02:48]} 12. Be2 {[%clk 0:02:40]}  O-O {[%clk 0:02:48]} 13. Bf3 {[%clk 0:02:37]}  Ne5 {[%clk 0:02:42]} 14. Be2 {[%clk 0:02:35]}  Neg4 {[%clk 0:02:33]} 15. Bf4 {[%clk 0:02:12]}  e5 {[%clk 0:02:27]} 16. Bg3 {[%clk 0:02:08]}  Re8 {[%clk 0:02:05]} 17. h3 {[%clk 0:02:04]}  Nh6 {[%clk 0:02:05]} 18. O-O {[%clk 0:01:58]}  Nf5 {[%clk 0:02:05]} 19. Bh2 {[%clk 0:01:59]}  Nd4 {[%clk 0:02:04]} 20. Bc4 {[%clk 0:01:53]}  a6 {[%clk 0:02:00]} 21. Bb3 {[%clk 0:01:46]}  b5 {[%clk 0:01:50]} 22. Qa5 {[%clk 0:01:47]}  Nd7 {[%clk 0:01:16]} 23. Nd5 {[%clk 0:01:43]}  Qd8 {[%clk 0:00:43]} 24. Qd2 {[%clk 0:01:29]}  Nc5 {[%clk 0:00:38]} 25. c3 {[%clk 0:01:14]}  Ncxb3 {[%clk 0:00:37]} 26. axb3 {[%clk 0:01:14]}  Qxd5 {[%clk 0:00:36]} 27. cxd4 {[%clk 0:01:13]}  exd4 {[%clk 0:00:37]} 28. Qd3 {[%clk 0:00:59]}  Qe4 {[%clk 0:00:34]} 29. f3 {[%clk 0:00:57]}  Qe3+ {[%clk 0:00:32]} 30. Kh1 {[%clk 0:00:56]}  Qxd3 {[%clk 0:00:31]} 31. Rxd3 {[%clk 0:00:55]}  Re2 {[%clk 0:00:31]} 32. Rb1 {[%clk 0:00:42]}  Rc8 {[%clk 0:00:31]} 33. Bg1 {[%clk 0:00:42]}  Rcc2 {[%clk 0:00:31]} 34. g4 {[%clk 0:00:37]}  Be5 {[%clk 0:00:25]} 35. f4 {[%clk 0:00:25]}  Bxf4 {[%clk 0:00:22]} 36. Rxd4 {[%clk 0:00:26]}  Be5 {[%clk 0:00:20]} 37. Rd8+ {[%clk 0:00:14]}  Kg7 {[%clk 0:00:20]} 38. Re8 {[%clk 0:00:12]}  f5 {[%clk 0:00:17]} 39. gxf5 {[%clk 0:00:12]}  gxf5 {[%clk 0:00:17]} 40. Rf1 {[%clk 0:00:11]}  Kf6 {[%clk 0:00:17]} 41. Rf8+ {[%clk 0:00:09]}  Ke6 {[%clk 0:00:17]} 42. R8xf5 {[%clk 0:00:09]}  Bxb2 {[%clk 0:00:17]} 43. R5f2 {[%clk 0:00:08]}  Rxf2 {[%clk 0:00:17]} 44. Rxf2 {[%clk 0:00:09]}  Rxf2 {[%clk 0:00:16]} 45. Bxf2 {[%clk 0:00:10]}  a5 {[%clk 0:00:16]} 46. Kg2 {[%clk 0:00:10]}  a4 {[%clk 0:00:17]} 47. bxa4 {[%clk 0:00:10]}  bxa4 {[%clk 0:00:17]} 48. Bc5 {[%clk 0:00:11]}  Kd5 {[%clk 0:00:15]} 49. Be7 {[%clk 0:00:09]}  Kc4 {[%clk 0:00:14]} 50. Kf3 {[%clk 0:00:09]}  Bc3 {[%clk 0:00:13]} 51. Kg4 {[%clk 0:00:09]}  Bb4 {[%clk 0:00:13]} 52. Bf6 {[%clk 0:00:09]}  a3 {[%clk 0:00:13]} 53. Kh5 {[%clk 0:00:09]}  Bc3 {[%clk 0:00:11]} 54. Bxc3 {[%clk 0:00:02]}  Kxc3 {[%clk 0:00:11]} 55. Kh6 {[%clk 0:00:03]}  a2 {[%clk 0:00:12]} 56. Kxh7 {[%clk 0:00:04]}  a1=Q {[%clk 0:00:13]} 57. h4 {[%clk 0:00:05]}  Qh1 {[%clk 0:00:13]} 58. h5 {[%clk 0:00:05]}  Qxh5+ {[%clk 0:00:13]} 59. Kg7 {[%clk 0:00:05]}  Qf5 {[%clk 0:00:14]} 60. Kg8 {[%clk 0:00:04]}  Qd7 {[%clk 0:00:13]} 61. Kf8 {[%clk 0:00:04]}  Kd4 {[%clk 0:00:14]} 62. Kg8 {[%clk 0:00:05]}  Ke5 {[%clk 0:00:15]} 63. Kf8 {[%clk 0:00:06]}  Kf6 {[%clk 0:00:15]} 64. Kg8 {[%clk 0:00:07]}  Qg7# {[%clk 0:00:16]} 0-1


[Site "https://www.chess.com"]

[Event "Titled Tuesday Blitz May 30 Early 2023"]
[White "Martin Alvarez, Inigo"]
[Black "Karas, Marek"]
[WhiteFideId "2259354"]
[BlackFideId "14928558"]
[WhiteElo "2375"]
[BlackElo "2233"]
[Result "1-0"]
[Round "08"]
[TimeControl "180+2"]
[Date "2023.05.30"]
[WhiteClock "0:00:15"]
[BlackClock "0:00:00"]

1. e4 {[%clk 0:03:00]}  g6 {[%clk 0:02:56]} 2. Nc3 {[%clk 0:02:54]}  Bg7 {[%clk 0:02:57]} 3. d3 {[%clk 0:02:54]}  d6 {[%clk 0:02:58]} 4. g3 {[%clk 0:02:54]}  c5 {[%clk 0:02:58]} 5. Bg2 {[%clk 0:02:54]}  Nc6 {[%clk 0:02:58]} 6. Nf3 {[%clk 0:02:52]}  Nf6 {[%clk 0:02:59]} 7. O-O {[%clk 0:02:52]}  O-O {[%clk 0:03:00]} 8. Bd2 {[%clk 0:02:52]}  Bg4 {[%clk 0:03:00]} 9. Qc1 {[%clk 0:02:51]}  Nd4 {[%clk 0:02:55]} 10. Nxd4 {[%clk 0:02:44]}  cxd4 {[%clk 0:02:56]} 11. Nd1 {[%clk 0:02:43]}  Be2 {[%clk 0:02:50]} 12. Re1 {[%clk 0:02:43]}  Bxd1 {[%clk 0:02:51]} 13. Qxd1 {[%clk 0:02:42]}  Rc8 {[%clk 0:02:52]} 14. h3 {[%clk 0:02:32]}  Qc7 {[%clk 0:02:49]} 15. Rc1 {[%clk 0:02:30]}  Nd7 {[%clk 0:02:49]} 16. Bg5 {[%clk 0:02:25]}  Rfe8 {[%clk 0:02:48]} 17. Qd2 {[%clk 0:02:23]}  Qb6 {[%clk 0:02:45]} 18. b3 {[%clk 0:02:21]}  Nc5 {[%clk 0:02:43]} 19. Bh6 {[%clk 0:02:20]}  Bxh6 {[%clk 0:02:42]} 20. Qxh6 {[%clk 0:02:19]}  Qa5 {[%clk 0:02:41]} 21. a4 {[%clk 0:02:05]}  Ne6 {[%clk 0:02:30]} 22. f4 {[%clk 0:01:56]}  Qh5 {[%clk 0:02:22]} 23. Qxh5 {[%clk 0:01:55]}  gxh5 {[%clk 0:02:23]} 24. f5 {[%clk 0:01:46]}  Ng5 {[%clk 0:02:19]} 25. h4 {[%clk 0:01:45]}  h6 {[%clk 0:02:00]} 26. hxg5 {[%clk 0:01:45]}  hxg5 {[%clk 0:02:01]} 27. Bf3 {[%clk 0:01:37]}  g4 {[%clk 0:02:00]} 28. Bd1 {[%clk 0:01:36]}  Kg7 {[%clk 0:01:56]} 29. Kf2 {[%clk 0:01:35]}  Rh8 {[%clk 0:01:54]} 30. Rh1 {[%clk 0:01:35]}  Rh6 {[%clk 0:01:52]} 31. Rh4 {[%clk 0:01:33]}  e6 {[%clk 0:01:44]} 32. fxe6 {[%clk 0:01:30]}  fxe6 {[%clk 0:01:45]} 33. Ke2 {[%clk 0:01:21]}  Rf8 {[%clk 0:01:32]} 34. Kd2 {[%clk 0:01:19]}  Rf2+ {[%clk 0:01:27]} 35. Be2 {[%clk 0:01:19]}  Rg2 {[%clk 0:01:28]} 36. Rch1 {[%clk 0:01:06]}  Rxg3 {[%clk 0:01:21]} 37. Rxh5 {[%clk 0:01:03]}  Rxh5 {[%clk 0:01:21]} 38. Rxh5 {[%clk 0:01:03]}  Kg6 {[%clk 0:01:22]} 39. Rh8 {[%clk 0:01:01]}  Rg1 {[%clk 0:01:16]} 40. Re8 {[%clk 0:00:56]}  Kf7 {[%clk 0:01:12]} 41. Rb8 {[%clk 0:00:55]}  g3 {[%clk 0:01:12]} 42. Rxb7+ {[%clk 0:00:55]}  Kf6 {[%clk 0:01:12]} 43. Rb8 {[%clk 0:00:46]}  Kg7 {[%clk 0:01:11]} 44. Rb5 {[%clk 0:00:27]}  Kg6 {[%clk 0:01:05]} 45. Bh5+ {[%clk 0:00:23]}  Kf6 {[%clk 0:00:59]} 46. Ke2 {[%clk 0:00:20]}  e5 {[%clk 0:00:32]} 47. Kf3 {[%clk 0:00:18]}  Kg5 {[%clk 0:00:32]} 48. Be8 {[%clk 0:00:16]}  Kh4 {[%clk 0:00:33]} 49. Rb7 {[%clk 0:00:16]}  Rf1+ {[%clk 0:00:32]} 50. Ke2 {[%clk 0:00:16]}  Rf2+ {[%clk 0:00:29]} 51. Ke1 {[%clk 0:00:17]}  Rf8 {[%clk 0:00:26]} 52. Rh7+ {[%clk 0:00:17]}  Kg4 {[%clk 0:00:24]} 53. Bd7+ {[%clk 0:00:17]}  Kf3 {[%clk 0:00:22]} 54. Rh5 {[%clk 0:00:17]}  Ke3 {[%clk 0:00:19]} 55. Rh3 {[%clk 0:00:17]}  Rg8 {[%clk 0:00:15]} 56. Bf5 {[%clk 0:00:17]}  Kf4 {[%clk 0:00:13]} 57. Kf1 {[%clk 0:00:16]}  Ke3 {[%clk 0:00:13]} 58. Kg2 {[%clk 0:00:17]}  Kf4 {[%clk 0:00:08]} 59. Be6 {[%clk 0:00:16]}  a5 {[%clk 0:00:00]} 60. Bxg8 {[%clk 0:00:15]} 1-0


[Site "https://www.chess.com"]

[Event "Titled Tuesday Blitz May 30 Early 2023"]
[White "Rose, Felix"]
[Black "Sowul, Bartosz"]
[WhiteFideId "5105722"]
[BlackFideId "1137590"]
[WhiteElo "2039"]
[BlackElo "2188"]
[Result "0-1"]
[Round "08"]
[TimeControl "180+2"]
[Date "2023.05.30"]
[WhiteClock "0:00:00"]
[BlackClock "0:01:21"]

1. d4 {[%clk 0:03:00]}  Nf6 {[%clk 0:02:59]} 2. Nf3 {[%clk 0:02:59]}  c5 {[%clk 0:02:58]} 3. e3 {[%clk 0:02:59]}  e6 {[%clk 0:02:56]} 4. Bd3 {[%clk 0:02:58]}  b6 {[%clk 0:02:56]} 5. O-O {[%clk 0:02:58]}  Bb7 {[%clk 0:02:57]} 6. Nbd2 {[%clk 0:02:58]}  d5 {[%clk 0:02:55]} 7. c3 {[%clk 0:02:46]}  Nbd7 {[%clk 0:02:46]} 8. Re1 {[%clk 0:02:46]}  Ne4 {[%clk 0:02:43]} 9. dxc5 {[%clk 0:02:25]}  Bxc5 {[%clk 0:02:32]} 10. Qc2 {[%clk 0:01:57]}  Ndf6 {[%clk 0:02:25]} 11. Nb3 {[%clk 0:01:26]}  Bd6 {[%clk 0:02:20]} 12. Bb5+ {[%clk 0:01:25]}  Kf8 {[%clk 0:02:20]} 13. Nfd4 {[%clk 0:01:20]}  Rc8 {[%clk 0:02:17]} 14. f3 {[%clk 0:01:17]}  Nc5 {[%clk 0:02:11]} 15. Qe2 {[%clk 0:01:13]}  Qc7 {[%clk 0:02:06]} 16. Nxc5 {[%clk 0:00:58]}  bxc5 {[%clk 0:01:59]} 17. Nb3 {[%clk 0:00:38]}  Bxh2+ {[%clk 0:01:59]} 18. Kh1 {[%clk 0:00:37]}  Bg3 {[%clk 0:01:58]} 19. Rd1 {[%clk 0:00:30]}  h5 {[%clk 0:01:58]} 20. Ba6 {[%clk 0:00:23]}  Bxa6 {[%clk 0:01:46]} 21. Qxa6 {[%clk 0:00:24]}  h4 {[%clk 0:01:45]} 22. e4 {[%clk 0:00:22]}  h3 {[%clk 0:01:44]} 23. exd5 {[%clk 0:00:18]}  Nxd5 {[%clk 0:01:38]} 24. c4 {[%clk 0:00:14]}  Nb4 {[%clk 0:01:30]} 25. Qa5 {[%clk 0:00:11]}  hxg2+ {[%clk 0:01:25]} 26. Kxg2 {[%clk 0:00:00]}  Qe5 {[%clk 0:01:21]} 0-1


[Site "https://www.chess.com"]

[Event "Titled Tuesday Blitz May 30 Early 2023"]
[White "Bashkansky, Ethan"]
[Black "Ljukin, Sergei"]
[WhiteFideId "2071533"]
[BlackFideId "14102200"]
[WhiteElo "2330"]
[BlackElo "2312"]
[Result "1/2-1/2"]
[Round "08"]
[TimeControl "180+2"]
[Date "2023.05.30"]
[WhiteClock "0:02:51"]
[BlackClock "0:01:48"]

1. d4 {[%clk 0:03:00]}  d5 {[%clk 0:02:55]} 2. c4 {[%clk 0:03:00]}  c6 {[%clk 0:02:55]} 3. Nc3 {[%clk 0:03:01]}  Nf6 {[%clk 0:02:55]} 4. e3 {[%clk 0:03:01]}  e6 {[%clk 0:02:55]} 5. Nf3 {[%clk 0:03:01]}  Nbd7 {[%clk 0:02:55]} 6. Bd3 {[%clk 0:03:01]}  dxc4 {[%clk 0:02:56]} 7. Bxc4 {[%clk 0:03:02]}  b5 {[%clk 0:02:56]} 8. Be2 {[%clk 0:03:02]}  a6 {[%clk 0:02:57]} 9. e4 {[%clk 0:03:02]}  c5 {[%clk 0:02:54]} 10. e5 {[%clk 0:03:02]}  cxd4 {[%clk 0:02:51]} 11. Qxd4 {[%clk 0:03:03]}  Bc5 {[%clk 0:02:36]} 12. Qh4 {[%clk 0:03:03]}  Nd5 {[%clk 0:02:35]} 13. Qg3 {[%clk 0:03:03]}  Kf8 {[%clk 0:02:18]} 14. O-O {[%clk 0:02:56]}  Nxc3 {[%clk 0:02:17]} 15. bxc3 {[%clk 0:02:57]}  Bb7 {[%clk 0:01:48]} 16. a4 {[%clk 0:02:51]} 1/2-1/2


[Site "https://www.chess.com"]